bitfinex/quotes_ETHUSD_20240722
["timestamp","ask_amount","ask_price","bid_price","bid_amount"]
[1721657743495,0.03431036,3481.9,3481.1,2.87263]
[1721657743903,0.03431036,3481.9,3481.3,2.87242]
[1721657744119,2.3106,3482.2,3481.3,2.87242]
[1721657744282,0.03424604,3481.8,3481.4,2.87236]
[1721657744488,2.3106,3482.2,3481.3,2.87242]
[1721657744717,0.03429374,3482.1,3481.3,2.87242]
[1721657745447,0.03429374,3482.1,3481.1,2.87259]
[1721657745718,0.03429374,3482.1,3481.2,2.87256]
[1721657746086,0.03429374,3482.1,3481.2,2.87252]
[1721657746287,0.03429374,3482.1,3481.1,2.8726]
[1721657746593,0.35060491,3482.1,3481.0,2.87268]
[1721657746817,0.35060491,3482.1,3481.2,2.87251]
[1721657747527,0.35060491,3482.1,3481.4,2.8724]
[1721657747841,0.03429374,3482.1,3481.5,2.87226]
[1721657748041,0.03429374,3482.1,3481.6,2.87223]
[1721657748459,0.03429374,3482.1,3481.8,2.87203]
[1721657748602,0.03429374,3482.1,3481.8,3.16497727]
[1721657748915,2.4004,3482.6,3481.8,3.16497727]
[1721657749128,0.35,3482.6,3482.2,2.87167]
[1721657749428,0.03431558,3482.5,3482.3,2.87166]
[1721657749937,0.03420097,3482.4,3482.1,2.87178]
[1721657750135,0.03420097,3482.4,3482.1,2.87177]
[1721657750440,0.35,3483.0,3482.3,2.87165]
[1721657750742,0.03428045,3482.9,3481.8,2.87207]
[1721657750945,0.03428045,3482.9,3482.3,2.87159]
[1721657751458,3.35,3483.2,3482.3,2.87159]
[1721657751778,3.0,3483.2,3482.3,2.87159]
[1721657751981,0.03434513,3483.1,3482.3,2.87159]
[1721657752267,0.03434513,3483.1,3482.5,2.87143]
[1721657753987,0.03434513,3483.1,3482.3,2.87166]
[1721657754297,0.03434513,3483.1,3482.2,2.87174]
[1721657754753,0.03434513,3483.1,3482.3,2.87161]
[1721657754958,0.03434513,3483.1,3482.4,2.87157]
[1721657754959,0.4926769,3483.0,3482.4,2.87157]
[1721657755352,0.03428045,3482.9,3482.4,2.87157]
[1721657755909,3.0,3483.2,3482.4,2.87157]
[1721657756188,0.03430812,3483.1,3482.4,2.87157]
[1721657757316,0.03430812,3483.1,3482.6,2.87136]
[1721657757472,0.03430812,3483.1,3482.7,2.87128]
[1721657757666,0.03430812,3483.1,3482.8,2.87118]
[1721657757906,3.61571347,3483.8,3482.8,2.87118]
[1721657758114,0.38447027,3483.7,3482.8,2.87118]
[1721657758320,0.38447027,3483.7,3483.0,2.87104]
[1721657758525,0.32603425,3483.6,3483.0,2.87104]
[1721657758812,0.32603425,3483.6,3482.8,2.87118]
[1721657758965,0.03443849,3483.5,3482.8,2.87118]
[1721657759171,0.03443849,3483.5,3482.8,2.87119]
[1721657759511,0.03443849,3483.5,3482.7,2.87129]
[1721657759682,1.01910711,3483.5,3482.7,2.87129]
[1721657759886,1.01910711,3483.5,3482.7,2.87127]
[1721657760074,1.01910711,3483.5,3482.8,2.8712]
[1721657760268,1.01910711,3483.5,3482.9,2.87112]
[1721657760269,0.03443849,3483.5,3482.9,2.87112]
[1721657760520,0.03443849,3483.5,3482.7,2.87127]
[1721657760709,0.03443849,3483.5,3483.0,2.87106]
[1721657761207,0.03443849,3483.5,3483.0,2.87104]
[1721657761378,0.03443849,3483.5,3483.2,2.87086]
[1721657761579,5.4256,3483.8,3483.2,2.87086]
[1721657761580,2.4256,3483.8,3483.2,2.87086]
[1721657761808,0.03443083,3483.4,3483.2,2.87086]
[1721657761992,3.0,3483.8,3483.2,0.57419]
[1721657762192,0.03441494,3483.3,3483.2,2.87092]
[1721657762438,0.45027222,3483.9,3483.3,2.87083]
[1721657762750,0.03449437,3483.8,3483.7,2.87051]
[1721657763094,0.03449437,3483.8,3483.0,2.87108]
[1721657763331,1.19011347,3484.5,3483.7,2.87051]
[1721657763540,0.35,3484.5,3483.8,2.87042]
[1721657763693,0.03458967,3484.4,3483.8,2.87042]
[1721657764148,3.0,3484.5,3483.7,2.8705]
[1721657764450,3.0,3484.5,3482.4,2.87153]
[1721657764451,0.03457379,3484.3,3483.4,2.8707]
[1721657764594,1.05079102,3484.4,3483.4,2.8707]
[1721657764798,0.03455791,3484.2,3483.4,2.8707]
[1721657764988,0.03457379,3484.3,3483.4,2.8707]
[1721657765231,0.03454202,3484.1,3483.4,2.8707]
[1721657765437,0.03455791,3484.2,3483.4,2.8707]
[1721657765589,0.03452614,3484.0,3483.4,2.87069]
[1721657765792,0.03455024,3484.1,3483.6,2.87054]
[1721657766103,0.03453436,3484.0,3483.5,2.87067]
[1721657766308,0.51876904,3484.2,3483.5,2.87067]
[1721657766506,0.03455024,3484.1,3483.3,2.87077]
[1721657766711,0.4434963,3484.1,3483.1,2.87095]
[1721657767095,2.4615,3484.0,3482.9,2.8711]
[1721657767395,2.4615,3484.0,3482.7,7.31]
[1721657767396,0.03465964,3483.9,3483.0,2.87103]
[1721657767736,0.03465964,3483.9,3483.3,2.87081]
[1721657768456,0.03465964,3483.9,3483.1,2.87096]
[1721657768606,0.03465964,3483.9,3483.2,2.87087]
[1721657768800,0.03465964,3483.9,3483.4,2.87074]
[1721657769238,0.03465964,3483.9,3483.3,2.87083]
[1721657769424,0.40894606,3484.1,3483.3,2.87083]
[1721657769603,0.03466029,3483.8,3483.3,2.87083]
[1721657769799,0.39277151,3484.0,3483.3,2.87083]
[1721657770003,0.0346444,3483.7,3483.3,2.87083]
[1721657770260,0.40894606,3484.1,3483.3,2.87083]
[1721657770408,0.03464006,3483.6,3483.3,2.87083]
[1721657770609,0.40894606,3484.1,3483.4,2.87075]
[1721657771146,0.03471158,3484.0,3483.3,2.8708]
[1721657771544,0.03471158,3484.0,3482.5,2.4193]
[1721657771545,2.3636,3483.9,3482.9,2.87112]
[1721657771714,2.3636,3483.9,3482.5,5.29078]
[1721657771923,0.03468915,3483.8,3483.2,2.87085]
[1721657772151,0.03468915,3483.8,3482.7,2.87133]
[1721657772152,0.03468915,3483.8,3483.7,2.87051]
[1721657772506,3.0,3484.2,3483.7,2.87051]
[1721657772701,0.03471238,3484.1,3483.7,2.87051]
[1721657772910,2.3636,3484.3,3483.7,2.87051]
[1721657773144,0.03472826,3484.2,3483.6,2.87054]
[1721657773320,0.03472826,3484.2,3483.7,2.87046]
[1721657774462,0.03472826,3484.2,3483.5,2.87067]
[1721657774608,0.03472826,3484.2,3483.3,2.87076]
[1721657774609,0.27456109,3484.2,3483.3,2.87076]
[1721657775120,0.27456109,3484.2,3483.1,2.87095]
[1721657775121,3.62456109,3484.2,3483.1,2.87095]
[1721657775320,3.62456109,3484.2,3483.2,2.87088]
[1721657775542,0.88582211,3484.1,3483.2,2.87088]
[1721657775926,0.03473979,3484.0,3483.1,2.87099]
[1721657776319,0.03473979,3484.0,3483.2,2.87087]
[1721657778056,0.03473979,3484.0,3483.4,2.87075]
[1721657778347,3.0,3484.2,3483.4,2.8707]
[1721657778644,3.0,3484.2,3483.5,2.8706]
[1721657778645,0.03468329,3483.9,3483.5,2.8706]
[1721657778858,3.0,3484.2,3483.6,2.87058]
[1721657779010,0.03466741,3483.8,3483.6,2.87058]
[1721657779360,0.03465152,3483.7,3483.6,2.87058]
[1721657779516,0.03465152,3483.7,3483.4,3.39198]
[1721657779517,0.03465152,3483.7,3483.4,3.39197]
[1721657779853,2.3636,3484.3,3483.5,2.87067]
[1721657780055,3.536945,3484.3,3483.5,2.87067]
[1721657780246,3.0,3484.4,3483.7,2.87049]
[1721657780247,3.03473094,3484.2,3483.7,2.87049]
[1721657780458,0.03473094,3484.2,3483.7,2.87046]
[1721657780951,0.03472571,3484.1,3483.7,2.87046]
[1721657781345,2.3178,3484.7,3483.7,0.05740859]
[1721657781514,0.03470982,3484.0,3483.9,2.87034]
[1721657781706,0.35,3484.6,3483.9,0.57981286]
[1721657781914,0.03478923,3484.5,3483.9,2.87034]
[1721657782116,2.3178,3484.7,3483.9,2.87034]
[1721657782315,0.03484947,3484.6,3483.9,2.87034]
[1721657782547,0.03484947,3484.6,3483.3,2.87083]
[1721657782548,0.03484947,3484.6,3483.7,2.87043]
[1721657782760,2.86985,3484.5,3483.4,2.87073]
[1721657783065,3.80922695,3484.4,3483.2,2.87087]
[1721657783285,3.84404467,3484.4,3483.4,2.87074]
[1721657783487,3.84404467,3484.4,3483.4,2.87071]
[1721657783874,3.84404467,3484.4,3483.5,2.87066]
[1721657784076,1.06075281,3484.3,3483.5,2.87066]
[1721657784259,0.03478596,3484.2,3483.5,2.87066]
[1721657784585,0.03478596,3484.2,3483.6,2.87058]
[1721657785360,0.03478596,3484.2,3483.4,2.87071]
[1721657785780,0.35,3484.3,3483.4,2.87071]
[1721657786001,0.03477007,3484.1,3483.4,2.87071]
[1721657786148,0.60513682,3484.2,3483.4,2.87071]
[1721657786347,0.03474506,3484.0,3483.4,2.87071]
[1721657786547,0.03476094,3484.1,3483.4,2.87071]
[1721657786751,0.03472917,3483.9,3483.4,2.87071]
[1721657786998,0.03474506,3484.0,3483.5,2.87067]
[1721657787290,0.03471329,3483.8,3483.2,2.87086]
[1721657787495,0.03472917,3483.9,3483.4,2.87068]
[1721657787697,0.992352,3484.3,3483.4,2.87068]
[1721657787698,0.03471329,3483.8,3483.5,2.87066]
[1721657787998,3.0,3484.4,3483.6,2.87059]
[1721657788300,2.3536,3484.5,3483.6,2.87059]
[1721657788301,0.35,3484.3,3483.6,2.87059]
[1721657788447,3.0,3484.4,3483.6,2.87059]
[1721657788648,0.03477682,3484.2,3482.8,2.424]
[1721657788894,0.03477968,3484.1,3483.6,2.87053]
[1721657789051,0.03477968,3484.1,3483.8,2.87038]
[1721657789253,2.3536,3484.5,3483.8,2.87038]
[1721657789501,2.3536,3484.5,3483.9,2.87034]
[1721657789858,0.03487079,3484.4,3483.9,2.87034]
[1721657790062,0.03487079,3484.4,3483.7,2.87044]
[1721657790408,0.03487079,3484.4,3483.6,2.87058]
[1721657790605,1.14766987,3484.4,3483.1,2.87094]
[1721657790814,1.14766987,3484.4,3483.1,2.87095]
[1721657790815,2.87003,3484.3,3483.1,2.87095]
[1721657790957,4.14766987,3484.4,3483.1,2.87095]
[1721657790958,3.35,3484.2,3483.1,2.87095]
[1721657791162,0.38482749,3484.2,3483.3,2.8708]
[1721657791856,3.38482749,3484.2,3483.2,2.87091]
[1721657792058,3.90699566,3484.1,3483.0,2.87108]
[1721657792273,2.29421899,3484.0,3483.1,2.871]
[1721657792812,2.29421899,3484.0,3482.2,2.461]
[1721657792813,2.8706,3483.6,3482.2,2.461]
[1721657792956,3.2206,3483.6,3482.2,2.461]
[1721657793160,3.2206,3483.6,3482.0,0.6558177]
[1721657793161,5.36459833,3483.5,3482.0,0.6558177]
[1721657793470,4.7615733,3483.4,3482.3,2.8716]
[1721657793793,4.7615733,3483.4,3482.5,2.87146]
[1721657793794,0.03451237,3483.3,3482.5,2.87146]
[1721657793981,0.03451237,3483.3,3482.6,2.87136]
[1721657794350,0.03451237,3483.3,3482.8,2.87124]
[1721657794556,0.03451237,3483.3,3482.6,2.87136]
[1721657794789,0.03451237,3483.3,3482.6,2.87135]
[1721657794999,0.03451237,3483.3,3482.9,2.87111]
[1721657795207,0.03451237,3483.3,3483.1,2.87096]
[1721657795505,0.03451237,3483.3,3483.2,2.87092]
[1721657795671,1.19011347,3484.2,3483.4,2.87068]
[1721657796007,1.54011347,3484.2,3483.5,2.87067]
[1721657796160,2.3301,3484.4,3483.7,2.87046]
[1721657796350,2.3301,3484.4,3483.9,2.8703]
[1721657796351,1.6914106,3484.4,3483.9,2.8703]
[1721657796556,1.49275782,3484.6,3483.9,2.8703]
[1721657796557,1.19011347,3484.6,3483.9,2.87028]
[1721657796797,1.19011347,3484.7,3483.9,2.87028]
[1721657796957,1.19011347,3484.7,3484.0,2.87025]
[1721657797355,1.54011347,3484.7,3483.9,2.87034]
[1721657797697,3.52021347,3484.8,3484.1,2.87015]
[1721657797898,4.7537177,3484.8,3483.5,2.3031]
[1721657798111,1.19011347,3484.6,3483.8,2.87037]
[1721657798469,1.19011347,3484.6,3483.9,2.8703]
[1721657799892,1.19011347,3484.6,3483.7,2.87044]
[1721657800094,1.19011347,3484.6,3483.8,2.87042]
[1721657800259,1.19011347,3484.6,3483.8,4.63173364]
[1721657800781,1.19011347,3484.6,3483.9,2.87029]
[1721657800983,1.19011347,3484.6,3484.1,2.87016]
[1721657801276,4.19011347,3484.7,3484.1,2.87016]
[1721657801791,4.19011347,3484.7,3483.9,0.75020236]
[1721657801792,1.19011347,3484.6,3483.9,2.87029]
[1721657801976,4.49497292,3484.7,3483.9,2.87029]
[1721657801977,1.19011347,3484.5,3483.9,2.87029]
[1721657802304,1.19011347,3484.6,3484.0,2.87025]
[1721657802861,0.03363443,3484.5,3484.0,2.87025]
[1721657805815,0.03363443,3484.5,3483.9,2.87032]
[1721657806235,1.19011347,3484.3,3483.8,1.76136364]
[1721657806381,1.19011347,3484.2,3483.8,1.76136364]
[1721657806575,1.19011347,3484.0,3483.8,1.76136364]
[1721657806806,1.52918887,3484.2,3483.8,1.76136364]
[1721657806807,1.19011347,3483.9,3483.8,1.76136364]
[1721657807128,1.2237289,3483.9,3483.8,1.76136364]
[1721657807439,1.80107969,3483.9,3483.8,1.76136364]
[1721657807580,1.87915304,3483.9,3483.8,1.76136364]
[1721657807780,0.38361543,3483.9,3483.8,1.76136364]
[1721657808240,1.87921635,3483.9,3483.8,1.76136364]
[1721657808384,3.25395543,3483.9,3483.8,1.76136364]
[1721657808709,7.58303149,3483.9,3483.8,1.76136364]
[1721657809232,6.20816306,3483.9,3483.8,1.76136364]
[1721657809525,4.71269149,3483.9,3483.8,1.76136364]
[1721657809689,6.20805896,3483.9,3483.8,1.76136364]
[1721657810795,9.07839896,3483.9,3483.8,1.76136364]
[1721657811001,7.58303149,3483.9,3483.8,1.76136364]
[1721657811199,10.45337149,3483.9,3483.8,1.76136364]
[1721657812601,16.34971149,3483.9,3483.8,1.76136364]
[1721657812814,18.77371149,3483.9,3483.8,1.38801809]
[1721657812997,20.86663871,3483.9,3483.8,1.38801809]
[1721657813189,18.77371149,3483.9,3483.8,1.38801809]
[1721657813390,21.20131149,3483.9,3483.8,1.38801809]
[1721657813901,23.29300333,3483.9,3483.8,1.38801809]
[1721657814105,21.20131149,3483.9,3483.8,1.38801809]
[1721657814456,23.29300333,3483.9,3483.8,1.38801809]
[1721657814806,21.20131149,3483.9,3483.8,0.76938363]
[1721657815252,21.20131149,3483.9,3481.6,2.3548]
[1721657815253,2.398,3483.2,3481.6,2.3548]
[1721657815394,2.398,3483.2,3481.7,0.96648]
[1721657815395,1.19414323,3482.8,3481.7,0.96648]
[1721657815595,1.19414323,3482.7,3481.7,3.83858]
[1721657815815,1.19414323,3482.7,3481.7,0.96648]
[1721657815816,2.87151,3482.5,3481.7,0.96648]
[1721657816011,2.87151,3482.5,3481.2,5.22732]
[1721657816012,4.19414323,3482.4,3481.2,5.22732]
[1721657816300,4.19414323,3482.4,3481.5,2.8723]
[1721657816301,3.03212717,3482.4,3481.5,2.8723]
[1721657816535,3.0,3482.3,3481.6,2.87222]
[1721657816744,0.03212717,3482.4,3481.7,2.87214]
[1721657816906,0.03215697,3482.3,3481.5,2.87225]
[1721657817430,0.0321575,3482.2,3481.4,2.87233]
[1721657817730,0.0321575,3482.2,3481.4,0.522713]
[1721657818030,5.4894,3482.4,3481.4,0.522713]
[1721657818241,0.03206425,3482.1,3481.4,0.522713]
[1721657818542,0.03202522,3482.3,3481.4,3.395053]
[1721657818751,0.03197753,3482.0,3481.4,0.522713]
[1721657818906,5.4894,3482.4,3481.3,2.87244]
[1721657819234,0.35,3482.2,3481.1,2.8726]
[1721657819461,0.35,3482.2,3480.7,2.4337]
[1721657819462,4.57195,3482.0,3480.8,2.87284]
[1721657819614,4.57195,3482.0,3480.6,2.873]
[1721657819615,2.87217,3481.7,3480.6,2.873]
[1721657819949,0.637217,3481.6,3480.6,2.873]
[1721657820152,1.7,3481.5,3480.5,2.87314]
[1721657820438,0.03184696,3481.4,3480.6,2.87301]
[1721657820893,0.03184696,3481.4,3480.4,2.87322]
[1721657821098,0.03184696,3481.4,3480.3,2.87326]
[1721657821296,0.86109415,3481.3,3480.3,2.87326]
[1721657821495,0.86109415,3481.3,3479.9,2.8736]
[1721657821496,0.03180683,3481.2,3479.9,2.8736]
[1721657821847,0.03180683,3481.2,3479.7,2.3462]
[1721657821848,0.38180683,3481.2,3480.3,2.8733]
[1721657822224,0.38180683,3481.2,3480.4,2.87321]
[1721657823672,0.38180683,3481.2,3480.3,2.87326]
[1721657823821,0.4115321,3481.1,3480.3,2.87326]
[1721657824150,0.4115321,3481.1,3480.0,2.87352]
[1721657824151,0.03167885,3481.0,3480.2,2.87338]
[1721657824362,1.7,3480.8,3479.7,2.87378]
[1721657824575,0.03155703,3480.7,3479.6,2.87382]
[1721657824880,0.35,3480.5,3479.8,2.87372]
[1721657825279,0.03150996,3480.4,3479.8,2.87365]
[1721657825484,0.03150996,3480.4,3479.9,2.87363]
[1721657825794,0.03150996,3480.4,3479.7,2.87374]
[1721657825956,0.4604457,3480.6,3479.8,2.87365]
[1721657826133,0.4604457,3480.6,3479.9,2.87363]
[1721657826134,0.54754644,3480.5,3479.9,2.87363]
[1721657826335,0.89754644,3480.5,3479.9,2.87363]
[1721657826547,0.89754644,3480.5,3479.7,2.87374]
[1721657826548,0.89754644,3480.5,3479.8,2.87372]
[1721657826750,0.89754644,3480.5,3479.5,2.87393]
[1721657827170,0.89754644,3480.5,3479.3,2.8741]
[1721657827171,1.7,3480.3,3479.3,2.8741]
[1721657827365,0.57849715,3480.2,3479.4,2.874]
[1721657827566,0.57849715,3480.2,3479.3,2.8741]
[1721657827972,0.35,3480.0,3479.3,2.8741]
[1721657828158,0.35,3480.0,3479.1,2.87428]
[1721657828159,0.03143733,3479.9,3479.1,2.87428]
[1721657828753,0.35,3479.9,3479.0,2.87438]
[1721657829053,0.60772811,3479.8,3479.0,2.87438]
[1721657829450,0.60772811,3479.8,3478.9,1.82679063]
[1721657829451,2.30772811,3479.8,3478.9,1.82679063]
[1721657829644,2.87381,3479.7,3478.9,1.82679063]
[1721657829838,8.34839,3479.5,3478.9,1.82679063]
[1721657830144,0.35,3479.0,3478.9,1.82679063]
[1721657830333,0.38086902,3479.0,3478.9,1.82679063]
[1721657830557,2.40637192,3479.0,3478.9,1.82679063]
[1721657831281,13.01355192,3479.0,3478.9,1.42718017]
[1721657831441,13.01355192,3479.0,3476.7,2.87625]
[1721657831442,2.2828,3478.3,3476.7,2.87625]
[1721657831636,2.2828,3478.3,3476.6,2.87637]
[1721657831637,2.87546,3477.8,3476.6,2.87637]
[1721657831840,2.87546,3477.8,3476.3,2.2641]
[1721657831841,5.90169,3477.5,3476.3,2.87656]
[1721657832042,3.0,3477.4,3475.8,2.87702]
[1721657832269,2.424,3476.8,3475.3,2.87742]
[1721657832510,3.0,3476.9,3475.7,2.87711]
[1721657832799,0.03036155,3476.8,3474.9,2.424]
[1721657833097,0.03036155,3476.8,3476.2,2.87663]
[1721657833389,3.172875,3477.7,3476.4,2.8765]
[1721657833390,1.7,3477.4,3476.4,2.8765]
[1721657833603,0.35,3477.0,3476.4,2.8765]
[1721657833745,0.35,3477.0,3476.3,2.87661]
[1721657834095,0.02998654,3476.9,3476.0,2.87679]
[1721657834309,1.72998654,3476.9,3475.8,2.87699]
[1721657834448,0.35,3476.7,3475.8,2.87699]
[1721657834649,0.35,3476.7,3475.5,2.87727]
[1721657834861,0.02990568,3476.6,3475.6,2.87718]
[1721657835094,0.84280911,3476.6,3475.6,2.87718]
[1721657835275,3.21650911,3476.6,3475.3,2.87743]
[1721657835479,3.21650911,3476.6,3475.0,0.46752]
[1721657835480,2.05,3476.4,3475.0,0.46752]
[1721657835917,0.02975204,3476.3,3475.0,0.46752]
[1721657836214,0.02975204,3476.3,3474.3,6.12527]
[1721657836215,0.02975204,3476.3,3475.7,2.87711]
[1721657836516,0.02975204,3476.3,3475.8,2.87703]
[1721657836722,3.0,3476.5,3475.9,2.87694]
[1721657836877,3.0,3476.5,3474.8,3.247]
[1721657836878,0.02966177,3476.2,3474.9,2.87772]
[1721657837203,3.0,3476.5,3475.6,2.87712]
[1721657837427,0.35,3476.2,3475.0,2.87767]
[1721657837620,2.05,3476.2,3475.0,2.87763]
[1721657837910,0.02978628,3476.1,3475.5,2.87728]
[1721657838113,0.02978628,3476.1,3474.6,2.87802]
[1721657838266,0.02978628,3476.1,3475.5,2.87721]
[1721657838467,0.02978628,3476.1,3475.7,2.87711]
[1721657838693,0.02978628,3476.1,3474.7,0.287802]
[1721657838694,3.0,3476.5,3475.6,2.87713]
[1721657839010,3.0,3476.5,3474.7,0.287802]
[1721657839011,0.35,3476.2,3476.1,2.87678]
[1721657839215,0.02861084,3476.4,3476.1,2.87678]
[1721657839419,2.4015,3477.3,3476.1,2.87678]
[1721657839420,4.1015,3477.3,3476.3,2.87662]
[1721657839719,4.1015,3477.3,3475.9,2.87687]
[1721657839720,0.35,3477.1,3475.9,2.87687]
[1721657839901,0.35,3477.1,3475.6,2.87719]
[1721657839902,1.7,3476.9,3475.6,2.87719]
[1721657840214,2.4015,3476.4,3475.3,2.87744]
[1721657840398,2.4015,3476.4,3475.0,2.87768]
[1721657840399,2.05,3476.1,3475.1,2.87755]
[1721657840569,2.05,3476.1,3475.3,2.87738]
[1721657840769,0.02867073,3476.0,3475.3,2.87738]
[1721657841018,0.02867073,3476.0,3474.8,2.87785]
[1721657841170,0.3665378,3476.0,3475.3,2.87739]
[1721657841374,0.3665378,3476.0,3475.4,2.87731]
[1721657841881,0.3665378,3476.0,3474.9,2.87773]
[1721657841882,0.02867073,3476.0,3475.9,2.87695]
[1721657842100,0.02867073,3476.0,3475.9,8.63085]
[1721657842290,4.31132,3477.9,3475.9,8.63085]
[1721657842291,2.4341,3477.5,3476.5,2.87642]
[1721657842621,0.35,3476.9,3476.5,2.87642]
[1721657842799,4.726,3477.2,3475.0,3.247]
[1721657843115,1.7,3476.7,3476.1,2.87677]
[1721657843271,1.7,3476.7,3475.9,2.8769]
[1721657843468,1.7,3476.7,3475.1,7.10648752]
[1721657843469,0.02767791,3476.6,3476.2,2.87669]
[1721657843679,0.02767791,3476.6,3476.0,2.87686]
[1721657843680,0.02767791,3476.6,3476.0,2.87683]
[1721657843896,0.02767791,3476.6,3476.3,2.87661]
[1721657844097,0.76307458,3477.1,3476.0,5.75366]
[1721657844303,1.7,3477.2,3476.0,5.75366]
[1721657844304,2.05,3476.8,3476.0,2.87683]
[1721657844504,1.7,3476.4,3475.3,2.87739]
[1721657844818,0.02702177,3476.3,3475.3,2.87741]
[1721657844973,0.35,3476.1,3475.3,2.87741]
[1721657845177,0.02697388,3476.0,3475.4,2.87734]
[1721657845393,0.02697388,3476.0,3474.7,2.87786]
[1721657845394,1.7,3475.6,3474.7,2.87786]
[1721657845595,2.51650977,3475.5,3474.9,2.87777]
[1721657845803,3.0,3475.4,3474.9,2.87777]
[1721657845986,3.0,3475.4,3474.7,2.87791]
[1721657846310,0.02699024,3475.3,3474.9,2.87771]
[1721657846519,0.02699024,3475.3,3474.0,7.05131763]
[1721657846520,0.02699024,3475.3,3475.2,2.87753]
[1721657846885,0.02699024,3475.3,3475.1,2.8776]
[1721657847082,3.0,3475.8,3474.6,2.878]
[1721657847304,0.71618,3475.7,3475.2,2.87748]
[1721657847674,1.06618,3475.7,3474.9,2.8777]
[1721657847922,1.06618,3475.7,3475.0,2.87768]
[1721657847923,0.02701335,3475.6,3475.0,2.87768]
[1721657848273,0.02701335,3475.6,3474.8,2.87782]
[1721657848501,1.72701335,3475.6,3474.4,2.87816]
[1721657848701,0.27931934,3475.5,3474.6,2.87794]
[1721657848925,0.27931934,3475.5,3474.7,2.87793]
[1721657849076,0.27931934,3475.5,3474.1,2.87843]
[1721657849077,0.02697728,3475.4,3474.6,2.87802]
[1721657849276,0.35,3475.3,3474.4,2.87811]
[1721657849473,4.1548,3475.1,3474.2,2.87829]
[1721657849773,4.1548,3475.1,3474.0,1.89221763]
[1721657849774,0.35,3474.8,3474.0,4.77070763]
[1721657850127,0.35,3474.8,3474.0,1.89221763]
[1721657850128,0.0268333,3474.7,3474.0,1.89221763]
[1721657850284,1.7268333,3474.7,3474.0,1.89221763]
[1721657850483,4.7268333,3474.7,3474.0,1.89221763]
[1721657850673,1.7,3474.3,3474.0,1.89221763]
[1721657850880,8.33596,3474.2,3474.0,1.89221763]
[1721657851078,6.25444,3474.1,3474.0,1.89221763]
[1721657851374,6.28113427,3474.1,3474.0,1.89221763]
[1721657851615,5.3343,3473.3,3472.2,2.87999]
[1721657851815,1.7,3473.0,3472.2,2.87999]
[1721657852152,1.7,3473.0,3471.9,0.1491438]
[1721657852319,6.026,3473.1,3471.9,0.1491438]
[1721657852320,1.7,3472.6,3471.9,0.1491438]
[1721657852639,3.0,3472.6,3471.9,0.1491438]
[1721657852805,0.02636643,3472.5,3471.9,0.1491438]
[1721657853003,2.88,3473.2,3471.9,0.1491438]
[1721657853315,3.0,3473.1,3472.3,2.87991]
[1721657853494,0.35,3473.1,3472.8,2.87946]
[1721657853814,4.7,3473.7,3472.6,2.87968]
[1721657853815,0.35,3473.3,3472.6,2.87968]
[1721657853986,0.35,3473.3,3472.4,2.87984]
[1721657853987,0.35,3473.3,3472.5,2.87975]
[1721657854196,1.7,3473.1,3472.4,2.87984]
[1721657854517,9.20112179,3473.6,3471.9,0.1491438]
[1721657854518,6.32226179,3473.6,3471.9,0.1491438]
[1721657854830,0.35,3473.1,3472.7,2.87955]
[1721657855281,2.88,3473.9,3472.7,2.87955]
[1721657855282,2.88,3473.9,3472.7,2.87953]
[1721657855484,0.35,3473.6,3471.9,3.3961438]
[1721657855677,0.35,3473.6,3473.5,5.75788]
[1721657855909,1.7,3474.6,3473.8,2.87865]
[1721657856220,0.35,3474.1,3473.4,2.87894]
[1721657856522,0.35,3474.1,3473.0,2.87935]
[1721657856729,0.35,3474.1,3472.9,6.1264]
[1721657856730,2.4874,3474.7,3474.0,2.87848]
[1721657856879,2.4874,3474.7,3473.4,2.87898]
[1721657856880,0.35,3474.3,3473.4,3.247]
[1721657857233,2.88,3475.0,3474.2,2.87833]
[1721657857380,3.23,3475.0,3474.2,2.87833]
[1721657857581,3.23,3475.0,3474.4,2.87813]
[1721657857780,3.23,3475.0,3474.9,2.87778]
[1721657857781,0.35,3475.0,3474.9,2.87778]
[1721657858086,2.87652,3476.5,3473.6,2.4384]
[1721657858087,2.4491,3476.2,3475.2,2.87749]
[1721657858425,0.14156099,3477.5,3475.0,2.87764]
[1721657858426,0.35,3475.8,3475.0,2.87762]
[1721657858622,4.1491,3476.9,3475.2,2.87748]
[1721657858875,0.35,3476.0,3475.2,2.87748]
[1721657859022,0.35,3476.0,3475.4,2.8773]
[1721657859223,0.35,3476.0,3474.2,2.8783]
[1721657859224,0.35,3476.0,3474.3,3.247]
[1721657859423,5.62173495,3476.9,3474.3,3.247]
[1721657859424,3.026,3476.6,3475.0,2.87765]
[1721657859649,0.35,3476.1,3475.7,2.87707]
[1721657859962,3.026,3476.6,3475.4,2.87731]
[1721657859963,2.05,3476.3,3475.4,2.87731]
[1721657860167,2.05,3476.3,3475.1,2.87758]
[1721657860399,2.05,3476.3,3475.0,2.87763]
[1721657860400,7.95262,3476.3,3475.0,2.87763]
[1721657860546,1.7,3475.7,3474.4,0.61253]
[1721657860755,0.795262,3476.2,3475.4,2.87728]
[1721657861073,2.74560495,3476.9,3474.8,3.247]
[1721657861074,0.35,3476.0,3474.8,3.247]
[1721657861252,2.74560495,3476.9,3475.6,2.87718]
[1721657861253,4.7,3476.8,3475.6,2.87718]
[1721657861450,4.7,3476.8,3475.2,2.87749]
[1721657861451,4.7,3476.8,3475.9,2.87694]
[1721657861772,0.35,3476.1,3475.4,2.87729]
[1721657861952,3.026,3476.6,3475.3,2.87741]
[1721657861953,1.7,3476.4,3475.3,2.87741]
[1721657862152,0.7726,3476.3,3475.3,2.87741]
[1721657862465,0.7726,3476.3,3474.3,6.1252]
[1721657862466,0.35,3476.1,3475.5,2.8772]
[1721657862806,0.35,3476.1,3474.9,2.87773]
[1721657862807,0.35,3476.1,3475.2,2.87748]
[1721657863089,0.35,3476.1,3475.9,2.8769]